bitfinex/quotes_ETHUSD_20250505
["timestamp","ask_amount","ask_price","bid_price","bid_amount"]
[1746477413370,0.06927083,1804.7,1804.5,5.7101]
[1746477413874,0.06927083,1804.7,1804.5,11.25177645]
[1746477414085,0.06927082,1804.9,1804.7,5.54097704]
[1746477414437,0.06927082,1804.9,1804.6,5.54124176]
[1746477414664,0.06927082,1804.9,1804.6,5.58142272]
[1746477414869,0.06926043,1805.1,1804.8,6.3212793]
[1746477415173,0.06926043,1805.1,1804.9,4.942]
[1746477416245,0.06926043,1805.1,1804.9,2.46148353]
[1746477416746,5.53884275,1805.5,1804.9,2.46148353]
[1746477416935,0.50342788,1805.4,1805.1,0.7522]
[1746477417140,0.06924292,1805.5,1805.1,6.29193758]
[1746477417876,5.60797075,1805.5,1805.1,0.7522]
[1746477418577,0.06924292,1805.5,1805.1,6.29193202]
[1746477419075,5.60790398,1805.5,1805.1,6.29193202]
[1746477419376,7.70400439,1805.5,1805.1,0.7522]
[1746477419874,2.16534333,1805.5,1805.1,6.29204508]
[1746477420047,0.06924335,1805.5,1805.1,6.29192659]
[1746477420248,5.6077298,1805.6,1805.2,5.53952944]
[1746477420454,5.53863466,1805.5,1805.1,0.7522]
[1746477420655,5.53914818,1805.4,1805.1,0.7522]
[1746477420855,0.06924118,1805.3,1805.1,0.7522]
[1746477421076,5.60867572,1805.3,1805.1,0.7522]
[1746477421498,0.06924118,1805.3,1805.1,0.7522]
[1746477422391,5.60864211,1805.3,1804.9,2.46148353]
[1746477422564,5.60864211,1805.3,1805.0,0.8033]
[1746477422756,12.37441142,1805.3,1805.0,0.8033]
[1746477423068,5.53957319,1805.2,1805.0,0.8033]
[1746477423270,0.06924726,1805.1,1804.6,4.942]
[1746477423578,5.54070918,1804.9,1804.6,4.942]
[1746477423818,0.06926648,1804.8,1804.6,4.942]
[1746477424098,5.54029451,1805.0,1804.6,4.942]
[1746477424099,5.60956099,1805.0,1804.6,4.942]
[1746477424261,6.72451696,1805.0,1804.6,4.942]
[1746477424446,5.54047757,1804.9,1804.6,4.942]
[1746477424650,0.57480766,1804.8,1804.6,4.942]
[1746477424887,6.11570874,1804.8,1804.6,4.942]
[1746477425177,6.04663412,1804.7,1804.6,4.942]
[1746477425376,7.28158248,1804.7,1804.6,4.942]
[1746477427449,5.54200842,1804.4,1804.3,5.043]
[1746477427664,5.61128734,1804.4,1804.3,5.043]
[1746477427987,6.1168343,1804.4,1804.3,5.043]
[1746477428163,7.28270095,1804.4,1804.3,5.043]
[1746477430580,5.54231557,1804.3,1804.2,0.01]
[1746477430892,6.04786253,1804.3,1804.2,0.01]
[1746477431252,5.54231557,1804.3,1804.2,0.01]
[1746477431461,6.04921007,1804.3,1804.2,0.01]
[1746477431699,1.78260301,1804.3,1804.2,0.01]
[1746477431899,6.11849938,1804.3,1804.2,0.01]
[1746477432404,0.57618381,1804.3,1804.2,0.01]
[1746477432703,0.57618381,1804.3,1804.2,0.7849]
[1746477432704,0.5068945,1804.3,1804.2,0.7849]
[1746477433072,6.11849058,1804.3,1804.2,0.01]
[1746477433277,11.82024753,1804.3,1804.2,0.01]
[1746477433478,11.75096702,1804.3,1804.2,0.01]
[1746477434086,11.74316895,1804.3,1804.2,0.01]
[1746477435303,0.49909643,1804.3,1804.2,0.01]
[1746477435482,0.56838163,1804.3,1804.2,0.01]
[1746477436168,0.49909643,1804.3,1804.2,5.55262276]
[1746477436415,0.49909643,1804.3,1804.2,6.33942276]
[1746477439125,0.49909643,1804.3,1804.2,6.32784023]
[1746477439635,0.49909643,1804.3,1804.2,7.5149041]
[1746477445538,5.61050925,1804.7,1804.3,5.54221473]
[1746477445741,5.61050925,1804.7,1804.3,10.58721473]
[1746477446538,0.50738921,1804.6,1804.3,10.58721473]
[1746477446740,0.50738921,1804.6,1804.3,16.12936873]
[1746477447039,0.50738921,1804.6,1804.3,10.587154]
[1746477447227,0.50738921,1804.5,1804.3,10.587154]
[1746477447609,0.50738921,1804.4,1804.3,10.587154]
[1746477448008,0.50738921,1804.4,1804.3,10.58731557]
[1746477448361,0.50738921,1804.6,1804.5,5.5417013]
[1746477448509,0.50738921,1804.6,1804.5,6.40928598]
[1746477448714,0.50738921,1804.9,1804.6,5.54116394]
[1746477449051,0.50738921,1804.9,1804.8,6.35198014]
[1746477449249,3.63520649,1805.1,1804.8,6.35198014]
[1746477449250,3.63520649,1805.1,1804.8,0.8112]
[1746477449453,3.63520649,1805.1,1804.8,6.35182493]
[1746477449611,0.50825392,1805.0,1804.8,6.35182493]
[1746477449947,0.50825392,1805.0,1804.8,0.8112]
[1746477450248,0.50825392,1804.9,1804.8,6.35196001]
[1746477450810,0.50825392,1804.9,1804.8,0.8112]
[1746477451343,0.50825392,1804.9,1804.8,6.35198014]
[1746477451564,0.50825392,1804.9,1804.8,14.07195677]
[1746477451727,0.50825392,1804.9,1804.8,14.03179098]
[1746477452072,0.50825392,1805.1,1805.0,5.5401662]
[1746477452249,0.50825392,1805.1,1805.0,11.5663408]
[1746477452578,0.50825392,1805.1,1805.0,12.34659306]
[1746477453961,0.50825392,1805.1,1805.0,14.13529946]
[1746477454561,0.50825392,1805.4,1805.1,5.53980528]
[1746477454763,5.53944402,1805.3,1805.0,0.8204]
[1746477455157,0.50825392,1805.2,1805.0,0.8204]
[1746477455367,6.04790521,1805.2,1805.0,0.8204]
[1746477455669,0.50825392,1805.1,1804.9,4.989]
[1746477456169,0.50825392,1805.0,1804.9,4.989]
[1746477456368,0.50825392,1805.0,1804.9,10.52947315]
[1746477456767,0.50825392,1805.0,1804.9,11.34987315]
[1746477457072,15.35345279,1805.5,1805.2,5.53954342]
[1746477457073,9.8146323,1805.5,1805.2,5.53954342]
[1746477457371,9.17350604,1805.7,1805.3,0.8204]
[1746477457546,6.52492667,1805.6,1805.3,0.8204]
[1746477457747,0.50730775,1805.5,1805.3,0.8204]
[1746477458060,0.50730775,1805.5,1805.3,11.3476318]
[1746477458463,0.50730775,1805.4,1805.3,5.8084]
[1746477459667,0.50730775,1805.4,1805.3,4.988]
[1746477459870,1.11191357,1805.4,1805.3,4.988]
[1746477460181,0.50730775,1805.4,1805.3,4.988]
[1746477460548,6.11548317,1805.4,1805.3,4.988]
[1746477461485,0.50730775,1805.4,1805.3,4.988]
[1746477462365,6.04624648,1805.4,1805.3,4.988]
[1746477462575,0.50730775,1805.4,1805.3,4.988]
[1746477463457,0.50730775,1805.4,1805.3,10.52724555]
[1746477463661,0.50730775,1805.4,1805.3,12.21118664]
[1746477464001,14.71100762,1805.8,1805.4,5.53879694]
[1746477464192,5.53785662,1805.8,1805.5,5.53862265]
[1746477464481,0.5070732,1805.7,1805.5,6.31132265]
[1746477464843,11.07569667,1805.8,1805.5,0.7727]
[1746477465079,5.53775495,1805.8,1805.5,0.7727]
[1746477465685,0.50717165,1805.7,1805.5,0.7727]
[1746477465846,0.50717165,1805.7,1805.5,6.31132781]
[1746477466047,0.50717165,1805.7,1805.5,7.50034552]
[1746477466247,0.50717165,1805.6,1805.5,7.50034552]
[1746477466781,0.50717165,1805.8,1805.5,7.50034552]
[1746477467180,0.50717165,1805.8,1805.6,5.53831849]
[1746477467383,0.50717165,1805.7,1805.6,5.53810245]
[1746477467578,3.63520649,1806.0,1805.6,6.84193435]
[1746477467795,3.63520649,1806.0,1805.7,5.53792972]
[1746477467960,3.63520649,1806.0,1805.8,0.7854]
[1746477468285,0.50702699,1805.9,1805.8,6.32311181]
[1746477468466,0.50702699,1805.9,1805.8,8.60650996]
[1746477468669,5.60508444,1806.4,1806.0,5.53708402]
[1746477469185,0.50691955,1806.3,1806.1,5.53667648]
[1746477469357,3.63520649,1806.5,1806.3,5.53604929]
[1746477469556,3.63520649,1806.5,1806.4,6.08947738]
[1746477469757,3.63520649,1806.5,1806.4,0.5936494]
[1746477469989,3.63520649,1806.5,1806.3,11.52197909]
[1746477470395,3.63520649,1806.5,1806.4,5.53587245]
[1746477470593,3.63520649,1806.5,1806.2,6.32177756]
[1746477470775,3.63520649,1806.5,1806.3,5.53605914]
[1746477470974,3.63520649,1806.5,1806.4,6.08947836]
[1746477471516,3.63520649,1806.5,1806.4,6.89737836]
[1746477471916,3.63520649,1806.5,1806.4,6.93741979]
[1746477472113,3.63520649,1806.5,1806.4,6.89737836]
[1746477472280,0.00696301,1806.7,1806.5,5.53534086]
[1746477472613,0.00696301,1806.7,1806.6,6.3545596]
[1746477473074,0.00696301,1806.7,1806.6,6.39456679]
[1746477473273,0.00696301,1806.7,1806.6,6.3545596]
[1746477473694,0.00696301,1806.7,1806.6,6.3539596]
[1746477473890,0.00696301,1806.7,1806.6,6.39396273]
[1746477474204,3.63520649,1807.0,1806.9,6.35304058]
[1746477474407,3.63520649,1807.0,1806.9,17.32506744]
[1746477475401,3.63520649,1807.0,1806.9,17.74597349]
[1746477475801,5.53144562,1807.9,1807.4,5.53253912]
[1746477476113,5.53115359,1808.0,1807.5,10.55642591]
[1746477476319,3.63520649,1808.2,1807.9,11.51719816]
[1746477476482,3.63520649,1808.2,1808.0,0.03992221]
[1746477477015,3.63520649,1808.2,1808.0,5.53077407]
[1746477477309,3.63520649,1808.2,1808.1,5.53066755]
[1746477477518,3.63520649,1808.2,1808.0,5.5307693]
[1746477477680,3.63520649,1808.2,1808.1,5.53066755]
[1746477478481,3.63520649,1808.2,1808.1,6.36006755]
[1746477478690,3.63520649,1808.2,1808.1,0.8294]
[1746477478917,3.63520649,1808.2,1808.1,6.36006755]
[1746477479416,5.53016309,1808.3,1808.1,4.983]
[1746477479626,5.53036168,1808.2,1808.0,4.983]
[1746477479826,11.06041679,1808.3,1808.0,4.983]
[1746477480011,5.53027579,1808.3,1808.0,4.983]
[1746477480210,5.53039631,1808.2,1808.0,4.983]
[1746477480418,1.10606721,1808.2,1807.8,0.8294]
[1746477480585,5.53097345,1808.0,1807.4,0.7853]
[1746477480791,0.06914253,1807.9,1807.4,5.7683]
[1746477481027,5.53078553,1808.1,1807.7,5.53161547]
[1746477481323,3.0691476,1808.2,1807.4,5.7683]
[1746477481490,5.5308714,1808.1,1807.5,5.53225336]
[1746477481682,5.53102641,1808.0,1807.6,5.53202986]
[1746477481882,11.06225873,1808.0,1807.6,5.53202986]
[1746477482088,0.5600019,1808.1,1807.4,5.7683]
[1746477482390,5.53131016,1807.9,1807.5,11.06466762]
[1746477482591,11.06231223,1808.0,1807.6,5.57204032]
[1746477482822,6.69332824,1808.0,1807.6,5.57204032]
[1746477482990,6.09080677,1808.1,1807.7,5.53176983]
[1746477483310,5.53049797,1808.2,1807.8,5.57150415]
[1746477483488,5.53049797,1808.2,1807.8,10.55350415]
[1746477483690,5.52990094,1808.4,1808.0,5.53084521]
[1746477484049,15.34434289,1808.5,1808.1,5.53055658]
[1746477484394,5.52975746,1808.4,1808.0,5.53080741]
[1746477484606,15.34431965,1808.5,1808.1,5.5305548]
[1746477484816,9.8146323,1808.5,1808.0,1.70478867]
[1746477485017,5.5302814,1808.3,1807.8,5.745]
[1746477485185,5.53058699,1808.2,1807.8,16.80779311]
[1746477485531,5.53058699,1808.2,1807.9,5.53126792]
[1746477485686,5.53026295,1808.3,1807.9,5.53126792]
[1746477485885,5.59903337,1808.4,1807.9,5.53126792]
[1746477486129,5.53026806,1808.3,1807.9,5.53126792]
[1746477486293,5.53037854,1808.2,1807.8,11.27640212]
[1746477487517,5.53037479,1808.2,1807.9,0.03991866]
[1746477487831,5.53037479,1808.2,1807.8,11.27632077]
[1746477488228,5.53067942,1808.1,1807.8,5.745]
[1746477488439,5.53127938,1807.9,1807.5,0.7868]
[1746477488729,5.53189135,1807.7,1807.6,5.003]
[1746477489247,5.53178766,1807.8,1807.6,5.003]
[1746477489412,5.53179334,1807.8,1807.6,5.003]
[1746477489853,5.53176305,1807.8,1807.6,5.003]
[1746477490548,5.53189135,1807.7,1807.6,5.003]
[1746477490921,5.52231712,1807.7,1807.6,5.003]
[1746477491326,5.53189135,1807.7,1807.6,5.003]
[1746477491544,3.0,1808.1,1807.6,5.003]
[1746477491752,5.53127938,1807.9,1807.6,5.003]
[1746477491937,11.06280508,1807.9,1807.6,5.003]
[1746477492133,5.53184587,1807.8,1807.6,5.003]
[1746477492458,5.53174102,1807.8,1807.6,5.003]
[1746477492664,5.53189135,1807.7,1807.6,5.003]
[1746477492874,5.53174102,1807.8,1807.6,5.003]
[1746477493339,5.53145873,1807.9,1807.6,5.8086]
[1746477494769,20.87575883,1808.2,1807.8,5.53156711]
[1746477494974,0.50487585,1808.1,1807.6,12.47472997]
[1746477495264,0.50487585,1808.0,1807.7,6.77916919]
[1746477495465,0.50487585,1808.0,1807.9,0.783]
[1746477496041,0.50551433,1808.0,1807.9,0.783]
[1746477496240,0.50551718,1808.0,1807.9,0.783]
[1746477496442,8.52923616,1808.6,1807.9,0.783]
[1746477496443,5.53021494,1808.3,1807.9,0.783]
[1746477496665,11.06054638,1808.3,1808.0,0.03991887]
[1746477496982,11.06054638,1808.3,1807.9,6.3141038]
[1746477496983,11.06055261,1808.3,1807.9,6.3141038]
[1746477497287,0.50631541,1808.2,1807.9,7.49865684]
[1746477497447,5.53021494,1808.3,1808.0,0.03991388]
[1746477497652,0.50716262,1808.2,1808.0,5.57084551]
[1746477497853,0.50716262,1808.2,1808.0,0.03991388]
[1746477498167,0.50716262,1808.2,1808.0,5.04291388]
[1746477498368,0.50716262,1808.2,1808.1,6.81375894]
[1746477499945,0.50716262,1808.2,1808.1,1.32298699]
[1746477500385,0.50716262,1808.2,1808.1,0.8186956]
[1746477500654,5.53023919,1808.3,1808.1,0.81870917]
[1746477501289,5.53023919,1808.3,1808.1,0.7788]
[1746477501786,5.53053292,1808.2,1808.0,5.003]
[1746477502660,11.0611797,1808.2,1808.0,5.003]
[1746477502859,5.53053292,1808.2,1808.0,5.003]
[1746477503598,11.0611868,1808.2,1808.0,5.003]
[1746477503884,5.53053292,1808.2,1808.0,5.003]
[1746477504095,11.56936949,1808.2,1808.0,5.003]
[1746477504392,6.03873549,1808.2,1808.0,5.003]
[1746477504594,0.50820257,1808.1,1808.0,5.003]
[1746477505195,0.50820257,1808.1,1808.0,5.04291599]
[1746477505493,0.50820257,1808.1,1808.0,6.18163536]
[1746477505892,0.50088981,1808.1,1808.0,6.18163536]
[1746477507296,0.50088981,1808.1,1808.0,11.71260881]
[1746477507459,0.50088981,1808.1,1808.0,11.67269282]
[1746477508150,0.50088981,1808.1,1808.0,12.42289282]
[1746477510001,0.50088981,1808.1,1808.0,12.97289282]
[1746477510859,0.50088981,1808.1,1808.0,12.42289282]
[1746477511651,0.50088981,1808.1,1808.0,12.97289282]
[1746477512983,5.52862053,1808.8,1808.5,0.807]
[1746477513304,5.52887377,1808.7,1808.5,5.808]
[1746477514207,5.52776314,1809.1,1808.7,5.52877525]
[1746477514367,5.52776314,1809.1,1808.6,5.5290111]
[1746477514566,5.52804751,1809.0,1808.7,5.52881513]
[1746477514979,5.52781122,1809.1,1808.7,5.52864138]
[1746477515190,5.52781122,1809.1,1808.7,6.63440131]
[1746477515501,11.05621075,1809.0,1808.6,5.52892668]
[1746477515702,5.52801881,1809.0,1808.6,5.52892668]
[1746477515903,5.52801881,1809.0,1808.7,5.52883045]
[1746477516077,5.52801881,1809.0,1808.6,5.52892668]
[1746477516702,5.52801881,1809.0,1808.6,11.05789435]
[1746477516999,5.52777513,1809.1,1808.7,5.5286541]
[1746477517300,5.52718411,1809.3,1808.7,5.52879824]
[1746477517503,5.59627685,1809.3,1808.7,5.52879824]
[1746477517867,6.03643819,1809.2,1808.7,5.52879824]
[1746477518067,0.50907655,1809.1,1808.7,5.52879824]
[1746477518407,0.50907655,1809.1,1808.8,1.31707982]
[1746477518725,0.50907655,1809.1,1808.9,4.936]
[1746477518921,0.50907655,1809.0,1808.9,4.936]
[1746477521301,6.03699252,1809.0,1808.9,4.936]
[1746477521886,6.10609002,1809.0,1808.9,4.936]
[1746477522087,7.20036323,1809.0,1808.9,4.936]
[1746477522403,6.03699252,1809.0,1808.9,4.936]
[1746477522983,5.52791597,1809.0,1808.9,4.936]
[1746477523181,6.03700442,1809.0,1808.9,4.936]
[1746477523385,3.57818655,1809.0,1808.3,18.288]
[1746477523584,5.52975005,1808.4,1808.3,4.935]
[1746477523800,5.53066755,1808.1,1808.0,5.6958]
[1746477523977,5.53025216,1808.3,1808.0,5.6958]
[1746477524171,0.50908845,1808.2,1808.0,6.81849833]
[1746477524395,0.50908845,1808.2,1808.0,12.34941712]
[1746477524676,0.50908845,1808.2,1808.1,5.53066755]
[1746477524872,6.03894799,1808.4,1808.0,12.34928981]
[1746477525209,6.03894799,1808.4,1808.0,12.34925829]
[1746477525406,0.50908845,1808.3,1808.0,6.81849833]
[1746477525713,0.50908845,1808.2,1808.0,12.34935606]
[1746477525922,0.49857261,1808.2,1808.0,6.81849833]
[1746477526087,0.49857261,1808.2,1808.0,12.3492702]
[1746477526604,0.49857261,1808.2,1808.1,6.80549905]
[1746477527039,5.52893914,1808.7,1808.3,5.52990998]
[1746477527245,5.52957499,1808.5,1808.1,7.54880061]
[1746477528151,5.52957499,1808.5,1808.2,5.53031974]
[1746477528332,5.52928061,1808.6,1808.3,5.5300454]
[1746477528527,5.5291668,1808.6,1808.3,0.03989312]
[1746477528731,5.52962029,1808.5,1808.2,1.30791204]
[1746477528933,5.52916129,1808.6,1808.2,6.8381502]
[1746477529106,5.52900889,1808.7,1808.3,5.56993724]
[1746477529311,5.52900889,1808.7,1808.4,5.52974962]
[1746477529920,5.52900889,1808.7,1808.3,6.25754239]
[1746477530238,5.52917155,1808.6,1808.3,6.21765509]
[1746477530427,5.52866267,1808.8,1808.4,5.52959571]
[1746477530608,5.52866267,1808.8,1808.4,11.89675246]
[1746477530806,5.52866267,1808.8,1808.5,5.52944182]
[1746477531008,5.52866267,1808.8,1808.6,0.03987276]
[1746477531236,5.52836166,1808.9,1808.6,0.03987276]
[1746477532555,5.52434977,1808.9,1808.6,0.03987276]
[1746477532718,11.05282482,1808.9,1808.6,0.03987276]
[1746477533046,11.05287149,1808.9,1808.6,0.03987276]
[1746477533251,5.52857825,1808.8,1808.6,0.03987276]
[1746477534116,5.52834071,1808.9,1808.5,5.56927932]
[1746477534436,5.52834071,1808.9,1808.6,0.55692793]
[1746477534616,11.05682727,1808.9,1808.6,0.55692793]
[1746477535154,5.52852875,1808.8,1808.6,0.55692793]
[1746477535854,5.52834071,1808.9,1808.6,0.55692793]
[1746477536032,5.52822528,1808.9,1808.6,0.55692793]
[1746477536218,5.52868208,1808.8,1808.6,0.55692793]
[1746477537255,5.52883286,1808.7,1808.6,0.55692793]
[1746477537459,5.52875181,1808.8,1808.4,5.7056]
[1746477537756,5.52854385,1808.8,1808.5,5.52928079]
[1746477537962,0.51048489,1808.7,1808.5,5.52928079]
[1746477538171,0.51048489,1808.7,1808.5,7.20573095]
[1746477538340,0.51048489,1808.6,1808.5,7.20573095]
[1746477538858,0.51048489,1808.6,1808.5,1.67645016]
[1746477539055,0.51048489,1808.6,1808.4,5.7056]
[1746477539269,0.51048489,1808.6,1808.4,4.936]
[1746477539270,6.03983873,1808.6,1808.4,4.936]
[1746477539460,6.03992918,1808.5,1808.4,4.936]
[1746477539661,0.51048489,1808.5,1808.4,4.936]
[1746477540948,6.03992918,1808.5,1808.4,4.936]
[1746477541932,0.51048489,1808.5,1808.4,4.936]
[1746477542134,0.51048489,1808.5,1808.4,4.97588823]
[1746477542335,0.51048489,1808.5,1808.4,12.32783198]
[1746477542574,5.52861413,1808.8,1808.4,12.28794375]
[1746477542874,0.51048489,1808.7,1808.4,12.28776965]
[1746477543376,0.51048489,1808.7,1808.6,5.52913856]
[1746477543536,5.52804618,1809.0,1808.6,6.67465497]
[1746477543744,5.52773981,1809.1,1808.7,0.7756]
[1746477543965,6.03890965,1809.0,1808.7,6.3043398]
[1746477544139,6.03890965,1809.0,1808.8,4.936]
[1746477544336,0.51085487,1808.9,1808.8,4.936]
[1746477544539,0.51085487,1808.9,1808.8,6.06003282]
[1746477545276,0.51085487,1808.9,1808.8,4.936]
[1746477545477,6.03907644,1808.9,1808.8,4.936]
[1746477546747,0.51085487,1808.9,1808.8,4.936]
[1746477548584,0.51085487,1808.9,1808.8,11.2716272]
[1746477550678,0.51137588,1808.9,1808.8,5.7431]
[1746477550889,0.50364585,1808.9,1808.8,6.87029219]
[1746477551061,0.50364585,1808.9,1808.8,12.39881939]
[1746477552366,9.16202333,1809.4,1809.0,5.52770756]
[1746477552692,9.16202333,1809.4,1809.1,5.52759739]
[1746477552875,3.63520649,1809.4,1808.9,5.52803689]
[1746477553185,5.52744475,1809.2,1809.0,0.55280369]
[1746477553361,5.52761041,1809.1,1808.8,12.39860368]
[1746477553562,5.52744475,1809.2,1808.8,12.39860368]
[1746477553746,11.05503459,1809.2,1808.8,12.39860368]
[1746477554388,5.52787537,1809.1,1808.8,5.7431]
[1746477554562,5.52801424,1809.0,1808.8,5.7431]
[1746477554963,5.52801424,1809.0,1808.8,4.936]
[1746477555162,5.52822157,1808.9,1808.8,4.936]
[1746477555880,5.52205807,1808.8,1808.6,4.901]
[1746477556084,11.05089072,1808.8,1808.6,4.901]
[1746477556400,5.52883286,1808.7,1808.6,4.901]
[1746477557269,5.52861551,1808.8,1808.6,4.901]
[1746477557598,5.52883286,1808.7,1808.6,4.901]
[1746477559773,5.52861551,1808.8,1808.6,4.901]
[1746477559969,5.52861551,1808.8,1808.6,4.94087119]
[1746477560387,11.05738838,1808.8,1808.6,4.901]
[1746477560587,5.52861551,1808.8,1808.6,4.901]
[1746477561108,11.0574231,1808.8,1808.6,4.901]
[1746477561269,5.52883286,1808.7,1808.6,4.901]
[1746477562603,5.52861551,1808.8,1808.6,4.901]
[1746477562902,5.52883286,1808.7,1808.6,4.901]
[1746477563403,6.04035237,1808.7,1808.6,4.901]
[1746477563901,5.52975005,1808.4,1807.9,0.8229]
[1746477564073,5.53036168,1808.2,1808.1,4.901]
[1746477564260,0.51151951,1808.3,1808.1,4.901]
[1746477564465,0.51151951,1808.2,1808.1,5.94418213]
[1746477564664,0.51151951,1808.2,1808.1,12.29774968]
[1746477566279,0.51151951,1808.2,1808.1,6.76708213]
[1746477566481,0.51151951,1808.2,1808.1,12.33765234]
[1746477566685,0.51151951,1808.2,1808.1,12.29774968]
[1746477568117,2.80190649,1809.0,1808.8,6.3157056]
[1746477568319,2.80190649,1809.0,1808.7,11.92383286]
[1746477568320,7.0051715,1810.0,1809.4,5.52642707]
[1746477568478,12.53020712,1810.0,1809.5,11.2156885]
[1746477568684,7.0051715,1810.0,1809.5,5.6893]
[1746477568879,11.42462465,1809.8,1809.3,6.31408235]
[1746477569196,11.42469296,1809.8,1809.4,4.901]
[1746477569376,5.27231329,1809.6,1809.5,4.901]
[1746477569576,10.79851842,1809.6,1809.5,4.901]
[1746477569819,6.00550634,1809.6,1809.5,4.901]
[1746477570032,6.83483237,1809.6,1809.5,4.901]
[1746477570215,5.52714072,1809.3,1808.9,32.66280056]
[1746477570386,5.52676881,1809.4,1809.0,10.42890688]
[1746477570781,5.51781298,1809.4,1809.0,10.42890688]
[1746477571306,5.5266085,1809.5,1809.0,10.42890368]
[1746477571509,0.47930121,1809.6,1809.1,6.04129352]
[1746477571739,5.52641469,1809.5,1809.1,5.98602686]
[1746477573117,5.52682261,1809.4,1809.1,5.98602686]
[1746477573615,5.52706717,1809.3,1809.1,5.98602686]
[1746477574223,5.52688841,1809.4,1809.1,5.98602686]
[1746477574726,6.32994253,1809.5,1809.1,5.98602686]
[1746477574932,6.32994253,1809.5,1809.2,0.05526551]
[1746477575313,11.85658414,1809.5,1809.2,0.05526551]
[1746477575624,5.52654253,1809.5,1809.2,0.05526551]
[1746477576197,5.52679679,1809.4,1809.1,7.62749662]
[1746477576737,5.52654253,1809.5,1809.2,0.05526552]
[1746477577422,5.52654253,1809.5,1809.2,5.58256418]
[1746477577629,0.8095,1809.8,1809.4,5.52648595]
[1746477577783,0.753,1809.9,1809.2,8.07978701]
[1746477577988,5.52628431,1809.6,1809.3,4.949]
[1746477578195,5.52628431,1809.6,1809.3,6.85048007]
[1746477578693,5.5256332,1809.8,1809.4,11.56786942]
[1746477578898,6.27836608,1809.9,1809.5,5.5816094]
[1746477579103,6.27836608,1809.9,1809.6,0.05525243]
[1746477579322,6.27836608,1809.9,1809.7,4.949]
[1746477579486,5.52503511,1810.0,1809.7,4.949]
[1746477579692,5.52503511,1810.0,1809.8,0.05525317]
[1746477580922,11.04950461,1810.1,1809.8,0.05525317]
[1746477581410,5.52486888,1810.0,1809.8,0.05525317]
[1746477582228,5.52470652,1810.1,1809.8,0.05525317]
[1746477582825,5.52470652,1810.1,1809.7,10.47471734]
[1746477583030,5.52489637,1810.0,1809.8,1.04747173]
[1746477583602,5.52472665,1810.1,1809.8,1.04747173]
[1746477584130,5.52472665,1810.1,1809.8,6.57293854]
[1746477584635,5.52472665,1810.1,1809.8,7.36183854]
[1746477585230,5.52472665,1810.1,1809.8,1.83637173]
[1746477585655,5.52516713,1809.9,1809.7,4.949]
[1746477585941,5.52507088,1810.0,1809.7,4.949]
[1746477587745,5.52473952,1810.1,1809.8,5.52538649]
[1746477588047,5.52473952,1810.1,1809.9,0.05524512]
[1746477588835,5.52470743,1810.1,1809.9,0.05524512]
[1746477589138,5.52470743,1810.1,1809.8,5.58054685]
[1746477589139,5.52464579,1810.1,1809.8,5.58054685]
[1746477589328,6.27743867,1810.2,1809.9,6.08312056]
[1746477589537,6.27743867,1810.2,1810.0,0.05524236]
[1746477589706,5.52455665,1810.1,1810.0,0.05524236]
[1746477589901,6.27743867,1810.2,1810.0,0.05524236]
[1746477590606,5.52455665,1810.1,1810.0,0.05524236]
[1746477590907,5.52455665,1810.1,1810.0,0.05524311]
[1746477591242,1.1728005,1810.4,1810.0,11.51088873]
[1746477591447,0.4059005,1810.4,1810.1,17.20303908]
[1746477591655,0.4059005,1810.4,1810.1,11.62344655]
[1746477592357,0.4059005,1810.4,1810.2,0.8242]
[1746477592526,0.4059005,1810.4,1810.3,0.05523278]
[1746477592717,0.4059005,1810.4,1810.3,0.69559901]
[1746477592910,0.4059005,1810.4,1810.3,0.64036623]
[1746477593149,5.5239463,1810.3,1810.2,0.8242]
[1746477593343,0.4059005,1810.4,1810.1,6.09908887]
[1746477593609,5.52425146,1810.2,1810.1,6.09908887]
[1746477593869,5.52408079,1810.3,1810.1,4.948]
[1746477595113,5.52425146,1810.2,1810.1,4.948]
[1746477595315,5.52408079,1810.3,1810.1,4.948]
[1746477596133,5.92972038,1810.4,1810.1,5.00323807]
[1746477596340,5.92972038,1810.4,1810.1,6.13846443]
[1746477596527,5.52406045,1810.3,1810.1,6.13846443]
[1746477596714,5.92967441,1810.4,1810.1,11.66297487]
[1746477596914,0.4059005,1810.4,1810.1,11.60756907]
[1746477597216,0.4059005,1810.4,1810.2,5.52424114]
[1746477597411,0.4059005,1810.4,1810.3,0.55242411]
[1746477598850,0.4059005,1810.4,1810.1,11.60756907]
[1746477600215,5.92955711,1810.4,1810.1,11.60756907]
[1746477600616,0.4059005,1810.4,1810.1,11.60756907]
[1746477601113,0.4059005,1810.4,1810.2,0.05523285]
[1746477601320,0.4059005,1810.4,1810.3,6.2809463]
[1746477601520,0.4059005,1810.4,1810.3,1.94303143]
[1746477602960,5.92962602,1810.4,1810.2,0.05523045]
[1746477603253,5.92971198,1810.4,1810.1,6.84022636]
[1746477604948,5.52397091,1810.3,1810.1,6.08322636]
[1746477605146,5.52397091,1810.3,1810.1,4.948]
[1746477605317,5.52397091,1810.3,1810.2,4.946]
[1746477605863,5.52480636,1810.1,1809.9,19.0807]
[1746477606165,5.52438334,1810.2,1810.0,4.946]
[1746477606339,5.52438334,1810.2,1810.0,7.40391181]
[1746477606866,11.04887493,1810.2,1810.0,7.40391181]
[1746477607059,5.5240406,1810.3,1810.0,7.40391181]
[1746477607367,11.45356936,1810.4,1810.0,12.87338777]
[1746477607764,5.52394913,1810.3,1810.0,12.87338777]
[1746477607940,5.52394913,1810.3,1810.1,1.28733878]
[1746477608464,5.92965685,1810.4,1810.1,1.34257641]
[1746477608924,0.4059005,1810.4,1810.2,5.52424629]
[1746477609130,0.4059005,1810.4,1810.2,6.29724629]
[1746477609532,0.4059005,1810.4,1810.2,0.773]
[1746477609744,0.4059005,1810.4,1810.2,7.05572278]
[1746477610632,0.4059005,1810.4,1810.3,4.903]
[1746477611138,0.4059005,1810.4,1810.3,4.95823254]
[1746477611345,0.4059005,1810.4,1810.3,4.95823259]
[1746477611765,0.4059005,1810.4,1810.3,4.903]
[1746477611945,0.4059005,1810.4,1810.3,11.62280087]
[1746477612467,5.92954168,1810.4,1810.3,6.09885457]
[1746477612642,5.92954168,1810.4,1810.3,4.903]
[1746477613156,5.52486187,1810.0,1809.9,18.274]
[1746477613363,5.52486187,1810.0,1809.9,23.176]
[1746477613546,5.52441204,1810.2,1809.9,23.176]
[1746477613741,11.04894152,1810.2,1810.0,2.37284155]
[1746477613941,5.52441204,1810.2,1810.0,2.37284155]
[1746477614375,5.92973483,1810.4,1810.0,2.37284155]
[1746477614674,0.4059005,1810.4,1810.0,7.84243202]
[1746477614881,0.4059005,1810.4,1810.1,0.7842432]